Cogmind - Beta 14 @@@ ROGUE MODE // 2024.09.25 @ 01:00:36 // Winter2022/Polymind Player: AnotherZach Result: Destroyed by H-61 Shepherd with Heavy Assault Cannon Performance ------------- Evolutions (3) 1500 Regions Visited (6) 1200 Robots Destroyed (16) 80 Value Destroyed (494) 494 Prototype IDs (3) 60 Alien Tech Used (0) 0 Bonus (2189) 2189 TOTAL SCORE: 5253 Bonus ------- Polymind Skill 2070 High Alert Combat Kills 4 Follower Combat Kills 115 Cogmind --------- Core Integrity 0/700 Matter 0/0 Energy 106/110 System Corruption 1% Temperature Cool (2) Movement Walking (120) Location -7/Factory Parts ------- > --- POWER (1) -------- Light Nuclear Core > --- PROPULSION (2) --- Aluminum Leg Aluminum Leg > --- UTILITY (1) ------ Improved Heat Sink > --- WEAPON (1) ------- Particle Gun > --- INVENTORY (1) ---- (None) Peak State ------------ > --- POWER ------------ Heavy Deuterium Engine > --- PROPULSION ------- Combat Antigrav System > --- UTILITY ---------- Advanced Launcher Guidance Computer Improved Target Analyzer Experimental Core Analyzer Improved Armor Integrity Analyzer EX Chip 1 EX Chip 1 EX Chip 1 EX Chip 1 EX Chip 1 EX Chip 1 EX Chip 1 EX Chip 1 EX Chip 1 EX Chip 1 EX Chip 2 EX Chip 2 EX Chip 2 EX Chip 2 EX Chip 2 EX Chip 2 EX Chip 2 EX Chip 2 > --- WEAPON ----------- AWS/EX-DEC > --- INVENTORY -------- Deploy-a-Sentry [Rating: 99] Favorites ----------- Power Heavy Deuterium Engine Engine Heavy Deuterium Engine Power Core Light Nuclear Core Propulsion Combat Antigrav System Leg Aluminum Leg Wheel Compact Wheel Hover Unit Combat Antigrav System Flight Unit Surge Thruster Utility EX Chip 1 Device Improved Heat Sink Storage Small Storage Unit Processor Advanced Launcher Guidance Computer Hackware EX Chip 1 Weapon AWS/EX-DEC Energy Gun AWS/EX-DEC Slashing Weapon Blade Saw Build | -11 -10 -10 -10 -9 -8 -7 ------- Run | Yrd Mat Min Exi Min Mat Fac Slots Evolved . | . . . . . . . Power . | . . . . . . . Propulsion . | . . . . . . . Utility . | . . . . . . . Weapon . | . . . . . . . Parts Attached . | . . . . . . . Power . | . . . . . . . Engine . | . . . . . . . Core . | . . . . . . . Reactor . | . . . . . . . Propulsion . | . . . . . . . Treads . | . . . . . . . Leg . | . . . . . . . Wheel . | . . . . . . . Hover . | . . . . . . . Flight . | . . . . . . . Utility . | . . . . . . . Device . | . . . . . . . Storage . | . . . . . . . Processor . | . . . . . . . Hackware . | . . . . . . . Protection . | . . . . . . . Artifact . | . . . . . . . Weapon . | . . . . . . . Energy Gun . | . . . . . . . Energy Cannon . | . . . . . . . Ballistic Gun . | . . . . . . . Ballistic Cannon . | . . . . . . . Launcher . | . . . . . . . Special Weapon . | . . . . . . . Impact Weapon . | . . . . . . . Slashing Weapon . | . . . . . . . Piercing Weapon . | . . . . . . . Special Melee Weapon . | . . . . . . . Unidentified Prototypes . | . . . . . . . Parts Lost 9 | . . . . . 1 8 Power . | . . . . . . . Propulsion . | . . . . . . . Utility 8 | . . . . . 1 7 Weapon 1 | . . . . . . 1 Highest Loss Streak 4 | . . . . . 1 4 To Critical Strikes . | . . . . . . . Average Slot Usage (%) 76 | . . . 42 96 96 78 Engine 1 | . . . 1 3 3 1 Core 2 | . . . . . . 2 Leg 3 | . . . . . . 5 Hover 1 | . . . 1 3 3 1 Device 2 | . . . . . . 3 Processor 11 | . . . 6 15 15 12 Hackware 46 | . . . 30 69 69 43 Energy Gun 3 | . . . 1 3 3 4 Peak Build Rating 99 | . . . 99 99 99 97 Average Rating 67 | . . . 41 99 98 65 On Entrance 42 | . . . . 99 99 97 Naked Turns 126 | . 16 36 55 . . 19 Heaviest Build 21 | . . . 21 21 21 21 Greatest Support 32 | 3 3 3 21 21 21 32 Greatest Overweight (x) . | . . . . . . . Average Overweight (x) . | . . . . . . . Largest Inventory Capacity 4 | . . . 2 2 2 4 Average Capacity 1 | . . . . 2 2 1 Most Carried 3 | . . . 1 1 1 3 Average Carried . | . . . . 1 1 . Final Capacity 2 | . . . 2 2 2 1 Final Carried 1 | . . . 1 1 1 . Class Distribution -------------------- 78% | Thief 9% | Cogmind 9% | Grunt Dominant Class ---------------- Cogmind | -10/Materials Cogmind | -10/Mines Cogmind | -10/Exiles Thief | -9/Mines Thief | -8/Materials Thief | -7/Factory Resources | -11 -10 -10 -10 -9 -8 -7 ----------- Run | Yrd Mat Min Exi Min Mat Fac Matter Collected . | . . . . . . . Remotely . | . . . . . . . Salvage Created 407 | . . . . 135 104 168 Parts 38 | . . . . 6 14 18 Haulers Intercepted . | . . . . . . . Recyclers Shooed . | . . . . . . . Parts Field Recycled . | . . . . . . . Retrieved Matter . | . . . . . . . Parts Self-Destructed . | . . . . . . . Prevented . | . . . . . . . Kills | -11 -10 -10 -10 -9 -8 -7 ------- Run | Yrd Mat Min Exi Min Mat Fac Combat Hostiles Destroyed 15 | . . . . 2 4 9 Melee 1 | . . . . . . 1 Guns 13 | . . . . 2 4 7 Classes Destroyed 5 | . . . . 1 2 2 Watcher 1 | . . . . . 1 . Swarmer 7 | . . . . . . 7 Cutter 3 | . . . . . 2 1 Grunt 4 | . . . . 2 2 . Sentry 1 | . . . . . . 1 Best Kill Streak 4 | . . . . 2 4 3 Combat Bots Only 4 | . . . . 2 4 3 Max Kills in Single Turn 1 | . . . . 1 1 1 Gunslinging . | . . . . . . . Exploded . | . . . . . . . Melee 1 | . . . . . . 1 Uniques/NPCs Destroyed . | . . . . . . . Combat | -11 -10 -10 -10 -9 -8 -7 -------- Run | Yrd Mat Min Exi Min Mat Fac Hostile Shots Fired 214 | . . . . 6 15 193 Missed 104 | . . . . 2 5 97 Damage Taken 1379 | . . . . 58 309 1012 Core 961 | . . . . 11 242 708 Absorbed by Shields . | . . . . . . . Ignored by Resistances 246 | . . . . . . 246 Core Remaining (%) 83 | 100 . . . 95 56 . Volleys Fired 3 | . . . . . . 3 Largest 1 | . . . . . . 1 Hottest 65 | . . . . . . 65 Shots Fired 53 | . . . . 6 18 29 Gun 53 | . . . . 6 18 29 Cannon . | . . . . . . . Launcher . | . . . . . . . Special . | . . . . . . . Kinetic . | . . . . . . . Thermal 3 | . . . . . . 3 Explosive . | . . . . . . . Electromagnetic 50 | . . . . 6 18 26 Robot Hit Streak 9 | . . . . 2 7 9 Robot Miss Streak 4 | . . . . 2 2 4 Penetration Max . | . . . . . . . Secondary Targets . | . . . . . . . Autonomous 50 | . . . . 6 18 26 Shots Hit Robots 49 | . . . . 4 17 28 Core Hits 35 | . . . . 3 12 20 Critical Kills . | . . . . . . . Critical Parts Destroyed . | . . . . . . . Critical Strikes 3 | . . . . . 1 2 Corrupt 3 | . . . . . 1 2 Melee Attacks 6 | . . . . . . 6 Impact . | . . . . . . . Slashing 6 | . . . . . . 6 Piercing . | . . . . . . . Sneak Attacks . | . . . . . . . Combat Hostiles . | . . . . . . . Follow-up Attacks . | . . . . . . . Damage Inflicted 1147 | . . . . 59 434 654 Guns 1058 | . . . . 59 434 565 Cannons . | . . . . . . . Explosions . | . . . . . . . Melee 39 | . . . . . . 39 Ramming 50 | . . . . . . 50 Kinetic . | . . . . . . . Thermal 46 | . . . . . . 46 Explosive . | . . . . . . . Electromagnetic 1012 | . . . . 59 434 519 Impact . | . . . . . . . Slashing 39 | . . . . . . 39 Piercing . | . . . . . . . Highest Corruption 1 | . . . . . . 1 Average Corruption 1 | . . . . . . 1 Corruption Purged . | . . . . . . . Corruption Blocked . | . . . . . . . Overload Shots . | . . . . . . . Overflow Damage . | . . . . . . . Projectiles . | . . . . . . . Explosions . | . . . . . . . Melee . | . . . . . . . Knockbacks 2 | . . . . . . 2 Impact 2 | . . . . . . 2 Kinetic . | . . . . . . . Secondary . | . . . . . . . Self-Inflicted Damage 23 | . . . . . . 23 Shots . | . . . . . . . Rammed 7 | . . . . . . 7 Targets Rammed 7 | . . . . . . 7 Kicked . | . . . . . . . Crushed . | . . . . . . . Highest Temperature 32 | . . . . 14 26 32 Average Temperature 12 | . . . . 6 15 18 Received Heat Transfer 207 | . . . . 30 63 114 Siege Activations . | . . . . . . . Robots Corrupted 1 | . . . . . . 1 Combat Hostiles 1 | . . . . . . 1 Parts Fried 2 | . . . . . . 2 Impact Corruptions . | . . . . . . . Robots Melted . | . . . . . . . Combat Hostiles . | . . . . . . . Parts Melted . | . . . . . . . Heat Transferred 111 | . . . . . . 111 Parts Sabotaged . | . . . . . . . Parts Stolen . | . . . . . . . Parts Stripped . | . . . . . . . Power Chain Reactions . | . . . . . . . Alert | -11 -10 -10 -10 -9 -8 -7 ------- Run | Yrd Mat Min Exi Min Mat Fac Peak Influence 588 | . . . . 53 170 588 Initial 77 | . . . . . 20 77 Average 213 | . . . . 32 62 279 Maximum Alert Level 2 | . . . . . . 2 Low Security (%) 41 | 100 100 100 . 100 100 19 Level 1 52 | . . . . . . 71 Level 2 6 | . . . . . . 9 Level 3 . | . . . . . . . Level 4 . | . . . . . . . Level 5 . | . . . . . . . High Security . | . . . . . . . Max Security . | . . . . . . . Squads Dispatched 9 | . . . . . 3 6 Investigation 3 | . . . . . . 3 Extermination 1 | . . . . . . 1 Reinforcement 5 | . . . . . 3 2 Assault . | . . . . . . . Garrison . | . . . . . . . Intercept . | . . . . . . . Searches Triggered 1 | . . . . . . 1 Construction Impeded . | . . . . . . . Haulers Reinforced . | . . . . . . . Active Scanning Responses . | . . . . . . . Cargo Convoy Interrupts 1 | . . . . . . 1 Stealth | -11 -10 -10 -10 -9 -8 -7 --------- Run | Yrd Mat Min Exi Min Mat Fac Distress Signals 3 | . . . . . 1 2 Communications Jammed . | . . . . . . . Distress Signals . | . . . . . . . Times Spotted 63 | . . . . 2 7 54 Peak Tracking Total 18 | . . . . 2 4 18 Tactical Retreats 10 | . . . . . 1 9 Traps | -11 -10 -10 -10 -9 -8 -7 ------- Run | Yrd Mat Min Exi Min Mat Fac Traps Triggered 2 | . . . . . . 2 Indirectly . | . . . . . . . Trap Hack Attempts . | . . . . . . . Triggered . | . . . . . . . Disarmed . | . . . . . . . Reprogrammed . | . . . . . . . Reused . | . . . . . . . Traps Extracted . | . . . . . . . Installed . | . . . . . . . Triggered 1 | . . . . . . 1 Machines | -11 -10 -10 -10 -9 -8 -7 ---------- Run | Yrd Mat Min Exi Min Mat Fac Machines Disabled . | . . . . . . . Max in Single Turn . | . . . . . . . Machines Repaired . | . . . . . . . Machines Dismantled . | . . . . . . . Machines Sabotaged . | . . . . . . . Overloaded Fab Kills . | . . . . . . . Hacking | -11 -10 -10 -10 -9 -8 -7 --------- Run | Yrd Mat Min Exi Min Mat Fac Machines Accessed 9 | . . . 1 . 2 6 Terminals 5 | . . . . . 2 3 Fabricators 2 | . . . . . . 2 Repair Stations . | . . . . . . . Recycling Units . | . . . . . . . Scanalyzers . | . . . . . . . Garrison Access 1 | . . . . . . 1 Total Hacks 35 | . . . 1 . 13 21 Successful 26 | . . . 1 . 13 12 Failed 9 | . . . . . . 9 Catastrophic 2 | . . . . . . 2 Database Lockouts . | . . . . . . . Manual 28 | . . . . . 14 14 Terminals 28 | . . . . . 13 15 Fabricators 4 | . . . . . . 4 Repair Stations . | . . . . . . . Recycling Units . | . . . . . . . Scanalyzers . | . . . . . . . Garrison Access 2 | . . . . . . 2 Terminal Hacks 19 | . . . 1 . 13 5 Record 1 | . . . 1 . . . Robot Schematic 5 | . . . . . 4 1 Robot Analysis 5 | . . . . . 5 . Level Access Points 2 | . . . . . 1 1 Branch Access Points 2 | . . . . . 1 1 Terminal Index 1 | . . . . . 1 . Unreport Threat 1 | . . . . . 1 . Recall Investigation 2 | . . . . . . 2 Fabricator Hacks 4 | . . . . . . 4 Load Schematic 2 | . . . . . . 2 Build 2 | . . . . . . 2 Repair Station Hacks . | . . . . . . . Recycling Unit Hacks . | . . . . . . . Scanalyzer . | . . . . . . . Garrison Access Hacks . | . . . . . . . Unauthorized Hacks 3 | . . . . . . 3 Terminals 2 | . . . . . . 2 Track 1 | . . . . . . 1 Botnet 1 | . . . . . . 1 Fabricators . | . . . . . . . Repair Stations . | . . . . . . . Recycling Units . | . . . . . . . Scanalyzers . | . . . . . . . Garrison Access 1 | . . . . . . 1 Reprogram 1 | . . . . . . 1 Data Cores Recovered . | . . . . . . . Used . | . . . . . . . Hacking Detections 6 | . . . . . 1 5 Full Trace Events 2 | . . . . . . 2 Feedback Events . | . . . . . . . Feedback Blocked . | . . . . . . . Robot Schematics Acquired 5 | . . . . . 4 1 Robots Built 1 | . . . . . . 1 Authchips . | . . . . . . . Time 210 | . . . . . . 210 Total Robot Build Rating 3 | . . . . . . 3 Part Schematics Acquired . | . . . . . . . Parts Built . | . . . . . . . Authchips . | . . . . . . . Time . | . . . . . . . Total Part Build Rating . | . . . . . . . Parts Repaired . | . . . . . . . Time . | . . . . . . . Parts Recycled . | . . . . . . . Recycled Matter . | . . . . . . . Retrieved Matter . | . . . . . . . Retrieved Components . | . . . . . . . Parts Scanalyzed . | . . . . . . . Part Schematics Acquired . | . . . . . . . Parts Damaged . | . . . . . . . Bothacking | -11 -10 -10 -10 -9 -8 -7 ------------ Run | Yrd Mat Min Exi Min Mat Fac Used RIF Installer . | . . . . . . . Robots Hacked 3 | . . . . . . 3 Non-combat 1 | . . . . . . 1 Combat 2 | . . . . . . 2 Robot Hacks Applied 5 | . . . . . . 5 find_recycling 1 | . . . . . . 1 find_shortcuts 2 | . . . . . . 2 find_garrison 2 | . . . . . . 2 Relay Couplers Released . | . . . . . . . Fabnet Peak Effective % . | . . . . . . . Robots Rewired . | . . . . . . . Allies Hacked . | . . . . . . . Hacks Repelled . | . . . . . . . Allies | -11 -10 -10 -10 -9 -8 -7 -------- Run | Yrd Mat Min Exi Min Mat Fac Total Allies 2 | . . . . 1 . 1 Largest Group 1 | . . . . 1 1 1 Highest-Rated Group 31 | . . . . 31 31 23 Highest-Rated Ally 31 | . . . . 31 31 23 Total Orders 1 | . . . . . . 1 AID 1 | . . . . . . 1 Ally Attacks 22 | . . . . . 5 17 Total Damage 1032 | . . . . . 44 988 Kills 8 | . . . . . 2 6 Allies Corrupted . | . . . . . . . Allies Melted . | . . . . . . . Turrets Deployed 1 | . . . . . . 1 Intel | -11 -10 -10 -10 -9 -8 -7 ------- Run | Yrd Mat Min Exi Min Mat Fac Robot Analysis Total 7 | . . . . . 5 2 Derelict Logs Recovered 1 | . . . . 1 . . Drone Launches . | . . . . . . . Drone Recoveries . | . . . . . . . Exploration | -11 -10 -10 -10 -9 -8 -7 ------------- Run | Yrd Mat Min Exi Min Mat Fac Turns Passed 1297 | 9 16 36 94 181 77 884 Spaces Moved 1656 | 18 31 72 158 213 96 1068 Core 753 | 18 31 72 108 . . 524 Treads . | . . . . . . . Legs 93 | . . . . . . 93 Wheels 9 | . . . . . . 9 Hover 774 | . . . 50 213 96 415 Flight 27 | . . . . . . 27 Fastest Speed 29 | 50 50 50 50 80 80 29 Average Speed 67 | 50 50 50 59 80 80 67 Slowest Speed 120 | 50 50 50 80 80 80 120 Overloaded Moves . | . . . . . . . Propulsion Burnouts . | . . . . . . . Robots Hopped . | . . . . . . . Cave-ins Triggered . | . . . . . . . Exploration Rate (%) 26 | 3 12 24 52 56 13 27 Regions Visited 6 Branch Regions 3 Pre-discovered Areas 2 | . . . 1 1 . . Known Exits Taken 1 | . . . . . 1 . Unknown Exits Taken 5 | 1 1 1 1 1 . . Scrap Searched . | . . . . . . . Spaces Dug . | . . . . . . . Terrain Destroyed . | . . . . . . . Melee . | . . . . . . . Projectile . | . . . . . . . AOE . | . . . . . . . Terrain Rammed . | . . . . . . . Walls Destroyed . | . . . . . . . Machines Disabled . | . . . . . . . Actions | -11 -10 -10 -10 -9 -8 -7 --------- Run | Yrd Mat Min Exi Min Mat Fac Total 1808 | 17 30 71 157 223 95 1215 Wait 142 | . . . . 11 . 131 Move 1650 | 17 30 71 157 212 95 1068 Hop . | . . . . . . . Pick Up . | . . . . . . . Fast Attach . | . . . . . . . Attach . | . . . . . . . Detach . | . . . . . . . Swap . | . . . . . . . Drop . | . . . . . . . Fire 3 | . . . . . . 3 Melee 6 | . . . . . . 6 Ram 7 | . . . . . . 7 Kick . | . . . . . . . Crush . | . . . . . . . Escape Stasis . | . . . . . . . Rewire . | . . . . . . . Trap . | . . . . . . . Miscellaneous . | . . . . . . . Route ------- -11/Scrapyard -10/Materials -10/Mines -10/Exiles -9/Mines -8/Materials (discovered 3 exits: *Fac x3) -7/Factory (discovered 6 exits: *Fac x4 / Low x2) History --------- Turn | Location | Event 5 | -11/Scrapyard | Discovered new exit (range 12) 10 | -11/Scrapyard | Entered Materials 18 | -10/Materials | Discovered new exit (range 16) 26 | -10/Materials | Entered Mines 60 | -10/Mines | Deemed a non-threat by the Exiles lab entrance 60 | -10/Mines | Discovered new exit (range 5) 62 | -10/Mines | Entered Exiles 75 | -10/Exiles | Met 8R-AWN 84 | -10/Exiles | Met EX-HEX 103 | -10/Exiles | Met EX-DEC 110 | -10/Exiles | Learned location of Zion (-6) 117 | -10/Exiles | Took control of EX-DEC (ally) 146 | -10/Exiles | Discovered new exit (range 11) 156 | -10/Exiles | Left Exiles lab with Deploy-a-Sentry 156 | -10/Exiles | Entered Mines 184 | -9/Mines | Received a Mining Laser from a helpful Derelict 317 | -9/Mines | Discovered new exit (range 11) 325 | -9/Mines | Received a Rocket Launcher from a helpful Derelict 337 | -9/Mines | Entered Materials 337 | -8/Materials | Accompanied by 1 ally 349 | -8/Materials | Identified exit to Factory 414 | -8/Materials | Entered Factory 414 | -7/Factory | Discovered new exit (range 16) 631 | -7/Factory | Identified exit to Lower Caves 631 | -7/Factory | Identified exit to Factory 669 | -7/Factory | Fabricated M-28 Smith? 969 | -7/Factory | Cargo convoy interrupted 975 | -7/Factory | Lost 4 parts (4u) 1106 | -7/Factory | Core integrity fell below 50% 1131 | -7/Factory | Core integrity fell below 20% 1180 | -7/Factory | DAS Turret deployed 1214 | -7/Factory | Search patrols dispatched 1298 | -7/Factory | Destroyed by H-61 Shepherd with Heavy Assault Cannon Last Messages --------------- detected, multiple search patrols dispatched. 01231_ R-06 Scavenger collects Imp. Heat Sink. 01232_ R-06 Scavenger collects Wheel. 01247_ K-01 Serf collects debris. 01248_ ALERT: Rogue bot located, Programmers report to Factory Zone 8V. 01248_ K-01 Serf collects debris. 01248_ I-36 Angel knocked back. 01250_ K-01 Serf collects debris. 01250_ Destroyed Com. Battery. 01252_ K-01 Serf collects debris. 01252_ I-36 Angel knocked back. 01254_ K-01 Serf collects debris. 01254_ R-06 Scavenger collects EX Chip 2. 01256_ K-01 Serf collects debris. 01261_ I-36 Angel destroyed. 01270_ K-01 Serf cleans the Matter Pump. 01288_ P-60 Hacker destroyed. 01294_ Destroyed Com. Wheel. 01296_ I-36 Angel knocked back. Map ----- +----------------------------------------------------+ | + ### """""" """""" #?????????????????????? | | # #?# #?????????????????????? | | # #?# #?????????????????????? | | ## #?#########+##########????????????????????? | | #???????# +?????????????? | | #???????# ########????????????????????? | | **! #???????# #??? #????????????????????? | | **! "#???????# #?? #????????????????????? | | *! "#???????+ #?? #????????????????????? | | "#???????# #?! [!#####????????????????? | | """ T#???????# #? [!# ????????????????? | | """ "#???????# # #!! ???????????????? | | """ "#???????# # """ #!! ???????????????? | | "#???????+ + """ # "???????????????? | | +???????# # """ # "???????????????? | | #???????# # # ""??????????????? | | ## #???????# #? # ""#?????????????? | | ?# ######### #? "" # T"#?????????????? | | ?# !! #??S"" # ""#?????????????? | | ?# !] #??"" # ""#?????????????? | | ?# ! """" #???#### ! ""#?????????????? | | ?# """" #??????# ""#?????????????? | | ?# """" #?????## ! "#?????????????? | | ?##### #?????# #?????????????? | | ?????# """" """% ############+######+####????? | | ?????# """" """" g t #????? | | ????# """" """% % o #????? | | Y??# H #????? | | "" # #????? | | / r #????? | | ! # ############+################# ###????? | | ###### #?????# #?????????? #??????? | | ?????# #?????# #??????????? #??????? | | ?????# #?????# #??????????? #??????? | | ?????# #?????# """" """" #???????????? #??????? | | ?????+ #?????# """" """" #???????????? #??????? | | ?????###?????# """" """" #????????????? #??????? | | ?????????????# """" """" #????????????? ##??????? | | ?????????????# """" """"? #??????????????#???????? | | ?????????????????"" ""???????????????????????????? | | ?????????????????? ???????????????????????????? | | ?????????????????? ????????????????????????????? | | ?????????????????? ????????????????????????????? | | ??????????????????###????????????????????????????? | | ?????????????????????????????????????????????????? | | ?????????????????????????????????????????????????? | | ?????????????????????????????????????????????????? | | ?????????????????????????????????????????????????? | | ?????????????????????????????????????????????????? | | ?????????????????????????????????????????????????? | +----------------------------------------------------+ Best States ------------- Heat Dissipation 55 Energy Generation 23 Energy Capacity 235 Sight Range 16 Terrain Scan Density 10 Resistance: EM 90 Evasion (%) 72 Launcher Accuracy 40 Target Analysis 6 Core Analysis 8 Armor Integrity Analysis 40 Offensive Hacking 70 Defensive Hacking 56 Item Schematics ----------------- None Robot Schematics ------------------ M-28 Smith | -8/Materials | Hacked H-55 Commando | -8/Materials | Hacked M-14 Sweeper | -8/Materials | Hacked G-47 Trooper | -8/Materials | Hacked H-66 Slayer | -7/Factory | Hacked Fabricated ------------ M-28 Smith | x1 | -7/Factory Alien Tech Used ----------------- None Achievements -------------- None Challenges ------------ None Polymind | -11 -10 -10 -10 -9 -8 -7 ---------- Run | Yrd Mat Min Exi Min Mat Fac Hosts 4 | . . . 1 . . 3 Combat Hostiles 2 | . . . . . . 2 Allies 1 | . . . 1 . . . Unique Host Classes 4 | . . . 1 . . 3 Average Host Suspicion 90 | . . . . 70 72 99 Unsuspicious Activity 18 | . . . 16 . . 2 Returns to Shadow . | . . . . . . . Fuzzy Dispatches . | . . . . . . . Protomatter Created 360 | . . . . . 77 283 Used 84 | . . . 33 . . 51 Decayed 76 | . . . . . . 76 Highest Spend 33 | . . . 33 . . 30 Top 5 Hosts by Kills: EX-DEC (-10/Exiles: 14) C-17 Slicer (-7/Factory: 1) Game ------ Seed TransmissionBombCore Manual? 0 Play Time 00:20:49 Cumulative 745.9 hours Start 2024.09.25 @ 00:45:44 End 2024.09.25 @ 01:00:36 Sessions 1 Manual Loads 0 Difficulty Rogue Special Mode Winter2022/Polymind Game No. 171 Rogue 33 Adventurer 138 Explorer 0 Win Type - Total 13 Types 8/0/1/2/1/0/0/0/1 Lore% 79 Gallery% 84 Achievement% 75 Wizard Run 0 Options --------- Layout 2 ASCII 0 Keyboard 0 Movement Mouse Keybinds 0 Fullscreen 1 Font 24/Smallcaps Map View 50x49 Zoom Use 0% Tactical HUD 1 Map Filters NONE Filters NONE Steam 1 RUN: a2dad6c6-9ca2-4baa-8074-96c5a76d90ac